bitfinex-derivatives/quotes_SOLF0:USTF0_20251025
["timestamp","ask_amount","ask_price","bid_price","bid_amount"]
[1761378611956,4.02125475,193.89,193.86,2.74]
[1761378612157,0.33,193.91,193.86,2.74]
[1761378612358,0.33,193.89,193.86,2.74]
[1761378616161,2.34279179,193.92,193.86,2.74]
[1761378616456,4.34829219,193.91,193.86,2.74]
[1761378616763,4.34829219,193.9,193.86,2.74]
[1761378617060,4.01829219,193.89,193.86,2.74]
[1761378617262,0.33,193.9,193.86,2.74]
[1761378618051,2.34279179,193.92,193.86,2.74]
[1761378618254,4.01736206,193.91,193.87,2.74]
[1761378618558,4.0172021,193.94,193.87,2.74]
[1761378618760,0.33,193.98,193.87,2.74]
[1761378618957,4.01753733,193.97,193.87,2.74]
[1761378619160,4.01753733,193.96,193.87,2.74]
[1761378619359,4.01753733,193.95,193.87,2.74]
[1761378619557,0.33,193.98,193.87,2.74]
[1761378619756,4.01532817,193.97,193.87,2.74]
[1761378619957,4.01532817,193.96,193.9,4.6405]
[1761378620260,4.01532817,193.95,193.92,2.74]
[1761378620454,0.33,193.98,193.92,2.74]
[1761378620655,4.34347739,193.97,193.92,2.74]
[1761378620859,4.01347739,193.96,193.92,2.74]
[1761378621053,4.01347739,193.95,193.92,2.74]
[1761378621359,4.49839027,193.99,193.92,2.74]
[1761378621360,4.01261599,193.96,193.92,2.74]
[1761378621668,4.82839027,193.99,193.92,2.74]
[1761378621962,4.0126174,193.98,193.92,2.74]
[1761378622164,4.0126174,193.97,193.92,2.74]
[1761378622359,4.0126174,193.96,193.92,2.74]
[1761378622665,4.0126174,193.98,193.92,2.74]
[1761378622866,4.0126174,193.97,193.92,2.74]
[1761378623164,4.0126174,193.96,193.92,2.74]
[1761378623361,2.34279179,193.96,193.92,2.74]
[1761378623553,0.33,193.95,193.92,2.74]
[1761378624058,0.33,193.95,193.91,62.34]
[1761378624261,0.33,193.91,193.88,2.74]
[1761378625465,2.67279179,193.92,193.88,2.74]
[1761378626866,0.33,193.91,193.88,2.74]
[1761378627268,2.67279179,193.92,193.88,2.74]
[1761378628367,0.33,193.91,193.88,2.74]
[1761378630258,0.33,193.91,193.86,62.34]
[1761378630458,0.33,193.91,193.84,65.06]
[1761378631072,0.33,193.91,193.85,2.74]
[1761378633366,0.33,193.9,193.85,2.74]
[1761378633773,0.33,193.9,193.84,62.32]
[1761378636274,0.33,193.89,193.85,2.74]
[1761378639074,4.31877593,193.89,193.85,2.74]
[1761378639275,0.33,193.89,193.85,2.74]
[1761378639676,4.31877593,193.89,193.85,2.74]
[1761378639875,0.33,193.89,193.85,2.74]
[1761378640275,4.31877593,193.89,193.85,2.74]
[1761378640474,0.33,193.89,193.85,2.74]
[1761378640674,1.49853895,193.88,193.85,2.74]
[1761378647582,1.49853895,193.91,193.85,2.74]
[1761378647784,4.00007172,193.9,193.85,2.74]
[1761378648084,4.00007172,193.89,193.85,2.74]
[1761378648286,1.49853895,193.91,193.85,2.74]
[1761378648476,4.00090312,193.9,193.85,2.74]
[1761378648677,4.00090312,193.89,193.85,2.74]
[1761378648987,1.49853895,193.91,193.85,2.74]
[1761378649188,4.00090459,193.9,193.85,2.74]
[1761378649384,1.49853895,193.91,193.85,2.74]
[1761378649385,4.00090459,193.89,193.85,2.74]
[1761378649688,1.49853895,193.91,193.85,2.74]
[1761378649889,4.00130834,193.9,193.85,2.74]
[1761378650188,4.00130834,193.89,193.85,2.74]
[1761378650387,0.33,193.89,193.85,2.74]
[1761378650782,1.82853895,193.91,193.85,2.74]
[1761378650984,4.33173758,193.9,193.85,2.74]
[1761378651291,4.00173758,193.89,193.85,2.74]
[1761378651491,0.33,193.9,193.85,2.74]
[1761378651690,0.33,193.88,193.85,2.74]
[1761378654193,0.33,193.89,193.85,2.74]
[1761378654389,4.00224267,193.88,193.85,2.74]
[1761378654582,0.33,193.89,193.85,2.74]
[1761378654788,4.00235554,193.88,193.85,2.74]
[1761378654991,0.33,193.89,193.85,2.74]
[1761378655190,4.00235554,193.88,193.85,2.74]
[1761378655392,0.33,193.89,193.85,2.74]
[1761378655593,4.00247014,193.88,193.85,2.74]
[1761378655793,0.33,193.89,193.85,2.74]
[1761378656092,4.00247014,193.88,193.85,2.74]
[1761378656296,0.33,193.89,193.85,2.74]
[1761378656592,4.00237166,193.88,193.85,2.74]
[1761378656794,0.33,193.89,193.85,2.74]
[1761378656993,4.00237166,193.88,193.85,2.74]
[1761378657194,0.33,193.89,193.85,2.74]
[1761378657386,4.00237166,193.88,193.85,2.74]
[1761378657583,0.33,193.89,193.85,2.74]
[1761378657783,4.0022833,193.88,193.85,2.74]
[1761378657988,0.33,193.89,193.85,2.74]
[1761378658294,4.0022833,193.88,193.85,2.74]
[1761378658495,0.33,193.89,193.85,2.74]
[1761378658695,4.00219868,193.88,193.85,2.74]
[1761378658896,0.33,193.89,193.85,2.74]
[1761378659094,4.00219868,193.88,193.85,2.74]
[1761378659290,0.33,193.89,193.85,2.74]
[1761378659493,4.00226759,193.88,193.85,2.74]
[1761378659693,0.33,193.89,193.85,2.74]
[1761378659893,4.00211431,193.88,193.85,2.74]
[1761378660103,0.33,193.89,193.85,2.74]
[1761378660293,4.00211431,193.88,193.85,2.74]
[1761378660492,0.33,193.89,193.85,2.74]
[1761378660692,4.00195572,193.88,193.85,2.74]
[1761378660898,4.33162997,193.87,193.83,2.85]
[1761378661093,0.33,193.87,193.83,2.85]
[1761378663494,1.49853895,193.88,193.83,2.85]
[1761378663698,4.00635736,193.87,193.83,2.85]
[1761378663901,1.82853895,193.88,193.83,2.85]
[1761378664600,4.00727483,193.87,193.83,2.85]
[1761378664800,1.82853895,193.88,193.83,2.85]
[1761378665001,4.0068726,193.87,193.83,2.85]
[1761378665201,1.82853895,193.88,193.83,2.85]
[1761378665406,4.00693407,193.87,193.83,2.85]
[1761378665704,1.82853895,193.88,193.83,2.85]
[1761378665898,4.00774939,193.87,193.83,2.85]
[1761378666095,1.82853895,193.88,193.83,2.85]
[1761378666291,4.00781169,193.87,193.83,2.85]
[1761378666596,1.82853895,193.88,193.83,2.85]
[1761378666794,4.00712116,193.87,193.83,2.85]
[1761378667000,1.82853895,193.88,193.83,2.85]
[1761378667198,4.00711637,193.87,193.83,2.85]
[1761378667398,1.82853895,193.88,193.83,2.85]
[1761378667597,4.00833448,193.87,193.83,2.85]
[1761378667799,1.82853895,193.88,193.83,2.85]
[1761378667999,4.00833505,193.87,193.83,2.85]
[1761378668199,1.82853895,193.88,193.83,2.85]
[1761378668398,4.00838843,193.87,193.83,2.85]
[1761378668700,4.00838843,193.86,193.83,2.85]
[1761378668899,1.82853895,193.88,193.83,2.85]
[1761378669100,4.01032306,193.87,193.83,2.85]
[1761378669404,4.01032306,193.86,193.84,2.84]
[1761378669594,1.82853895,193.88,193.84,2.84]
[1761378669797,4.01130406,193.87,193.84,2.84]
[1761378669999,1.49853895,193.88,193.84,2.84]
[1761378670195,4.01130406,193.87,193.84,2.84]
[1761378670395,1.49853895,193.88,193.84,2.84]
[1761378670601,4.0119429,193.87,193.84,2.84]
[1761378670799,1.49853895,193.88,193.84,2.84]
[1761378671000,1.49853895,193.88,193.82,62.34]
[1761378671001,4.65157499,193.9,193.85,2.84]
[1761378671205,4.01216079,193.89,193.85,2.84]
[1761378671407,4.01216079,193.88,193.85,2.84]
[1761378671607,4.65241543,193.9,193.85,2.84]
[1761378671808,4.01285736,193.89,193.85,2.84]
[1761378672108,4.01285736,193.88,193.87,2.84]
[1761378674016,5.14473426,193.94,193.87,2.84]
[1761378674209,4.34857412,193.93,193.89,2.84]
[1761378674409,4.01857412,193.92,193.89,2.84]
[1761378674714,4.01857412,193.91,193.89,2.84]
[1761378674916,4.01857412,193.9,193.89,2.84]
[1761378676116,0.33,193.93,193.89,2.84]
[1761378676319,4.01691124,193.92,193.89,2.84]
[1761378676509,4.01691124,193.91,193.89,2.84]
[1761378676710,4.66017991,193.92,193.89,2.84]
[1761378676910,4.01696019,193.91,193.89,2.84]
[1761378677108,0.33,193.93,193.89,2.84]
[1761378677320,4.01658865,193.92,193.89,2.84]
[1761378677517,4.01658865,193.91,193.89,2.84]
[1761378677713,0.33,193.93,193.89,2.84]
[1761378678016,4.01660836,193.92,193.89,2.84]
[1761378678220,4.01660836,193.91,193.89,2.84]
[1761378678404,4.65795277,193.93,193.89,2.84]
[1761378678704,4.01585236,193.92,193.89,2.84]
[1761378678904,4.01585236,193.91,193.89,2.84]
[1761378679120,4.98691547,193.93,193.89,2.84]
[1761378679313,4.0152828,193.92,193.89,2.84]
[1761378679614,4.0152828,193.91,193.89,2.84]
[1761378679817,5.14473426,193.96,193.89,2.84]
[1761378680018,9.00113699,193.95,193.89,2.84]
[1761378680313,8.67113699,193.94,193.89,2.84]
[1761378680518,4.01521159,193.93,193.89,2.84]
[1761378680720,4.01521159,193.92,193.9,2.84]
[1761378680916,4.65486252,193.94,193.91,2.84]
[1761378681118,4.01448711,193.93,193.91,2.84]
[1761378681312,0.33,193.97,193.91,2.84]
[1761378681517,8.99643272,193.96,193.91,2.84]
[1761378681711,4.01351812,193.95,193.91,2.84]
[1761378681911,4.01351812,193.94,193.91,2.84]
[1761378682122,0.33,193.96,193.91,2.84]
[1761378682425,4.0117083,193.95,193.91,2.84]
[1761378682611,4.65245447,193.97,193.93,2.84]
[1761378682811,4.34158134,193.96,193.93,2.84]
[1761378683019,4.01158134,193.95,193.93,2.84]
[1761378683222,0.33,193.96,193.93,2.84]
[1761378683419,4.01042117,193.95,193.93,2.84]
[1761378683611,0.33,193.96,193.93,2.84]
[1761378683811,4.01028458,193.95,193.93,2.84]
[1761378684118,0.33,193.96,193.93,2.84]
[1761378684420,4.33930751,193.95,193.93,2.84]
[1761378684620,0.33,193.97,193.93,2.84]
[1761378684919,4.33922952,193.96,193.93,2.84]
[1761378685118,4.00922952,193.95,193.93,2.84]
[1761378685319,0.33,193.95,193.93,2.84]
[1761378687717,0.33,193.95,193.92,4.6401]
[1761378687924,0.33,193.93,193.88,2.84]
[1761378689021,0.33,193.93,193.88,7.4811]
[1761378689410,4.00630688,193.92,193.85,2.84]
[1761378689615,4.33624704,193.91,193.86,2.84]
[1761378689815,0.33,193.91,193.86,2.84]
[1761378691517,0.33,193.91,193.86,4.6415]
[1761378691726,0.33,193.91,193.87,2.84]
[1761378691920,0.33,193.94,193.87,2.84]
[1761378692115,4.33637093,193.93,193.87,2.84]
[1761378692319,4.33637093,193.92,193.87,2.84]
[1761378692519,0.33,193.92,193.87,2.84]
[1761378692928,4.97904086,193.95,193.89,2.84]
[1761378693220,4.33373279,193.94,193.89,2.84]
[1761378693426,4.00373279,193.93,193.89,2.84]
[1761378693628,0.33,193.94,193.89,2.84]
[1761378693827,4.00358166,193.93,193.89,2.84]
[1761378694027,0.33,193.94,193.89,2.84]
[1761378694326,4.33358166,193.93,193.89,2.84]
[1761378694524,0.33,193.93,193.89,2.84]
[1761378696130,4.64467502,193.96,193.89,2.84]
[1761378696429,4.00382146,193.95,193.89,2.84]
[1761378696628,8.97849648,193.94,193.89,2.84]
[1761378696832,4.00382146,193.93,193.89,2.84]
[1761378697031,0.33,193.94,193.89,2.84]
[1761378697223,4.00385131,193.93,193.89,2.84]
[1761378697422,5.12034064,193.94,193.89,2.84]
[1761378697623,4.00398651,193.93,193.89,2.84]
[1761378697823,0.33,193.94,193.89,2.84]
[1761378698023,4.00406848,193.93,193.89,2.84]
[1761378698225,0.33,193.94,193.89,2.84]
[1761378698429,4.00415673,193.93,193.89,2.84]
[1761378698630,0.33,193.94,193.89,2.84]
[1761378698932,4.00414795,193.93,193.89,4.6408]
[1761378699126,0.33,193.94,193.9,2.87]
[1761378699326,4.00424559,193.93,193.9,2.87]
[1761378699536,0.33,193.94,193.9,2.87]
[1761378699727,4.00425403,193.93,193.9,2.87]
[1761378699927,0.33,193.94,193.9,2.87]
[1761378700227,4.00461926,193.93,193.9,2.87]
[1761378700530,0.33,193.94,193.9,2.87]
[1761378700731,4.00475507,193.93,193.9,2.87]
[1761378700925,0.33,193.97,193.9,2.87]
[1761378701130,9.12615343,193.96,193.9,2.87]
[1761378701327,0.33,193.94,193.9,2.87]
[1761378701537,4.00475654,193.93,193.9,2.87]
[1761378701736,0.33,193.94,193.9,2.87]
[1761378702032,4.00491706,193.93,193.9,2.87]
[1761378702234,0.33,193.94,193.9,2.87]
[1761378702431,4.005037,193.93,193.9,2.87]
[1761378702635,4.79158808,193.94,193.9,2.87]
[1761378702833,4.00510585,193.93,193.9,2.87]
[1761378703034,0.33,193.94,193.9,2.87]
[1761378703334,4.00510585,193.93,193.9,2.87]
[1761378703530,0.33,193.94,193.9,2.87]
[1761378703730,4.00532567,193.93,193.91,2.87]
[1761378703932,0.33,193.94,193.91,2.87]
[1761378705035,0.33,193.94,193.86,2.33958923]
[1761378705934,0.33,193.94,193.9,4.6406]
[1761378706929,0.33,193.94,193.91,2.87]
[1761378708630,5.12386395,193.94,193.91,2.87]
[1761378708830,0.33,193.94,193.91,2.87]
[1761378709230,4.00766498,193.93,193.91,2.87]
[1761378709540,0.33,193.94,193.91,2.87]
[1761378709741,4.00783025,193.93,193.91,2.87]
[1761378709941,2.76,193.91,193.89,2.87]
[1761378711935,2.76,193.92,193.89,2.87]
[1761378712138,4.00969975,193.91,193.89,2.87]
[1761378712436,2.76,193.92,193.89,2.87]
[1761378712642,4.0101017,193.91,193.89,2.87]
[1761378712831,2.76,193.92,193.89,2.87]
[1761378713031,4.0101017,193.91,193.89,2.87]
[1761378713242,2.76,193.92,193.89,2.87]
[1761378713439,4.0110074,193.91,193.89,2.87]
[1761378713742,2.76,193.92,193.89,2.87]
[1761378713944,4.011175,193.91,193.89,2.87]
[1761378714142,2.76,193.92,193.89,2.87]
[1761378714342,4.01220847,193.91,193.89,2.87]
[1761378714644,2.76,193.92,193.89,2.87]
[1761378714844,4.01351117,193.91,193.89,2.87]
[1761378715046,2.76,193.92,193.89,2.87]
[1761378715243,4.01446957,193.91,193.89,2.87]
[1761378715547,2.76,193.92,193.89,2.87]
[1761378715749,4.01446957,193.91,193.89,2.87]
[1761378716048,2.76,193.92,193.89,2.87]
[1761378716346,4.01502561,193.91,193.89,2.87]
[1761378716547,2.76,193.92,193.89,2.87]
[1761378716748,4.01502561,193.91,193.89,2.87]
[1761378716949,2.76,193.92,193.89,2.87]
[1761378717141,4.01502561,193.91,193.89,2.87]
[1761378717446,2.76,193.92,193.89,2.87]
[1761378717646,8.82008353,193.91,193.89,2.87]
[1761378717951,2.76,193.92,193.89,2.87]
[1761378718147,8.82008353,193.91,193.89,2.87]
[1761378718351,2.76,193.92,193.89,2.87]
[1761378718551,8.82072073,193.91,193.89,2.87]
[1761378718747,2.76,193.92,193.89,2.87]
[1761378718953,8.82026958,193.91,193.89,2.87]
[1761378719251,7.57934407,193.95,193.89,2.87]
[1761378719452,8.82043782,193.94,193.89,2.87]
[1761378719653,8.82043782,193.93,193.89,2.87]
[1761378719854,8.82043782,193.92,193.9,2.77]
[1761378720049,8.82043782,193.91,193.9,2.77]
[1761378722060,4.01561452,193.91,193.9,2.77]
[1761378722859,2.76,193.95,193.9,2.77]
[1761378723157,4.01017858,193.94,193.9,2.77]
[1761378723354,4.01017858,193.93,193.9,2.77]
[1761378723555,4.01017858,193.92,193.9,2.77]
[1761378723857,2.76,193.95,193.9,2.77]
[1761378724059,4.01016748,193.94,193.9,2.77]
[1761378724249,4.01016748,193.93,193.9,2.77]
[1761378724451,4.01016748,193.92,193.9,2.77]
[1761378724649,7.31744295,193.95,193.9,2.77]
[1761378724856,4.01016477,193.94,193.9,2.77]
[1761378725057,2.76,193.98,193.9,2.77]
[1761378725058,4.01016477,193.93,193.9,2.77]
[1761378725259,4.55790908,193.97,193.9,2.77]
[1761378725460,4.01056263,193.96,193.9,2.77]
[1761378725760,4.01056263,193.95,193.9,2.77]
[1761378725962,4.01056263,193.94,193.92,4.6401]
[1761378726261,7.31790908,193.97,193.93,2.77]
[1761378726461,4.01030617,193.96,193.93,2.77]
[1761378726663,4.01030617,193.95,193.93,2.77]
[1761378726859,4.01030617,193.94,193.93,2.77]
[1761378748077,4.49427253,193.98,193.94,4.6397]
[1761378748269,4.00806095,193.97,193.95,2.81]
[1761378748475,2.66,193.99,193.95,2.81]
[1761378748680,2.66,193.97,193.95,2.81]
[1761378750580,2.66,193.99,193.95,2.81]
[1761378750782,6.66518808,193.98,193.95,2.81]
[1761378750984,2.66,193.98,193.95,2.81]
[1761378751283,2.66,193.96,193.95,2.81]
[1761378753275,2.66,193.99,193.95,2.81]
[1761378753475,2.66,193.97,193.95,2.81]
[1761378761289,2.71,193.99,193.95,2.81]
[1761378761481,6.70523034,193.98,193.95,2.81]
[1761378761776,3.99523034,193.97,193.95,2.81]
[1761378761980,2.71,193.98,193.95,2.81]
[1761378762177,3.99523034,193.97,193.95,2.81]
[1761378762387,2.71,193.98,193.95,2.81]
[1761378762589,3.9955601,193.97,193.95,2.81]
[1761378762889,2.71,193.98,193.95,2.81]
[1761378771494,2.71,193.98,193.94,4.6397]
[1761378771689,2.71,193.98,193.94,7.3797]
[1761378771889,2.71,193.98,193.94,4.6397]
[1761378772092,2.71,193.98,193.94,7.3797]
[1761378772490,2.71,193.98,193.95,2.74]
[1761378774491,1.49668745,193.99,193.95,2.74]
[1761378774698,2.71,194.03,193.96,2.74]
[1761378775001,6.70781828,194.02,193.98,2.74]
[1761378775198,3.99781828,194.01,193.98,2.74]
[1761378775498,2.71,194.02,193.98,2.74]
[1761378775693,3.99707926,194.01,193.98,2.74]
[1761378775891,2.71,194.02,193.98,2.74]
[1761378776092,3.99708038,194.01,193.99,2.74]
[1761378776292,2.71,194.02,193.99,2.74]
[1761378779593,3.99347145,194.04,194.0,2.85]
[1761378779896,3.99347145,194.03,194.0,2.85]
[1761378780095,2.7,194.04,194.0,2.85]
[1761378780295,2.7,194.02,194.0,2.85]
[1761378780495,2.7,194.02,193.98,2.85]
[1761378780899,2.7,194.02,193.98,65.07]
[1761378786899,2.7,194.02,193.98,62.22]
[1761378787106,2.7,194.02,193.98,65.07]
[1761378787302,2.7,194.02,193.99,2.85]
[1761378793100,2.7,194.02,193.98,62.22]
[1761378793506,2.7,194.02,193.98,65.09]
[1761378794309,2.7,194.02,193.99,2.87]
[1761378802322,3.96580503,194.01,193.99,2.87]
[1761378802520,2.85,194.04,193.99,2.87]
[1761378802724,2.85,194.02,193.99,2.87]
[1761378803023,3.96580502,194.01,193.99,2.87]
[1761378803224,2.85,194.03,193.99,2.87]
[1761378803419,2.85,194.01,193.99,2.87]
[1761378806424,2.85,194.01,193.96,2.87]
[1761378806623,2.85,193.99,193.97,65.07]
[1761378811327,2.85,193.99,193.97,62.2]
[1761378813023,2.85,193.97,193.91,2.87]
[1761378813327,2.85,193.97,193.93,2.87]
[1761378814129,6.82985136,193.96,193.93,2.87]
[1761378814331,2.85,193.96,193.93,2.87]
[1761378830736,2.61,194.0,193.93,2.87]
[1761378831044,3.97767805,193.99,193.93,2.87]
[1761378831245,3.97767805,193.98,193.93,2.87]
[1761378831439,2.61,194.0,193.93,2.87]
[1761378831640,3.97789383,193.99,193.93,2.87]
[1761378831843,3.97789383,193.98,193.93,2.87]
[1761378832041,3.97789383,193.97,193.93,2.87]
[1761378832234,2.61,194.0,193.93,2.87]
[1761378832438,3.97790574,193.99,193.93,2.87]
[1761378832644,2.61,194.0,193.93,2.87]
[1761378832645,3.97790574,193.98,193.93,2.87]
[1761378832845,3.97790574,193.97,193.93,2.87]
[1761378833047,2.61,194.0,193.93,2.87]
[1761378833248,3.97788798,193.99,193.93,2.87]
[1761378833448,3.97788798,193.98,193.93,2.87]
[1761378833648,3.97788798,193.97,193.93,2.87]
[1761378833944,2.61,194.0,193.93,2.87]
[1761378834150,6.58794803,193.99,193.93,2.87]
[1761378834346,6.58794803,193.98,193.93,2.87]
[1761378834549,3.97794803,193.97,193.93,2.87]
[1761378834850,2.61,193.98,193.93,2.87]
[1761378839049,4.81073073,194.02,193.94,2.66]
[1761378839247,6.64900856,194.01,193.94,2.66]
[1761378839450,2.67,193.99,193.94,2.66]
[1761378839751,2.67,193.97,193.94,2.66]
[1761378840951,2.67,193.97,193.91,4.6404]
[1761378841157,2.67,193.95,193.89,2.66]
[1761378841357,2.67,193.95,193.9,2.66]
[1761378841558,6.65015549,193.94,193.9,2.66]
[1761378841760,2.67,193.94,193.9,2.66]
[1761378842251,2.67,193.97,193.9,2.66]
[1761378842456,4.0427181,193.96,193.9,2.66]
[1761378842659,4.0427181,193.95,193.9,2.66]
[1761378842961,4.0427181,193.94,193.9,2.66]
[1761378843155,2.67,193.97,193.9,2.66]
[1761378843352,4.04232818,193.96,193.9,2.66]
[1761378843547,4.04232818,193.95,193.9,2.66]
[1761378843751,4.04232818,193.94,193.9,2.66]
[1761378843958,2.67,193.97,193.9,2.66]
[1761378844159,4.04265167,193.96,193.9,2.66]
[1761378844360,4.04265167,193.95,193.9,2.66]
[1761378844559,4.04265167,193.94,193.9,2.66]
[1761378844759,2.67,193.97,193.9,2.66]
[1761378844960,4.0427883,193.96,193.9,2.66]
[1761378845168,4.0427883,193.95,193.9,2.66]
[1761378845361,4.0427883,193.94,193.9,2.66]
[1761378845553,2.67,193.97,193.9,2.66]
[1761378845861,4.04296317,193.96,193.9,2.66]
[1761378846059,4.04296317,193.95,193.9,2.66]
[1761378846261,4.04296317,193.94,193.9,2.66]
[1761378846560,2.67,193.97,193.9,2.66]
[1761378846760,4.04321844,193.96,193.9,2.66]
[1761378846961,4.04321844,193.95,193.9,2.66]
[1761378847162,4.04321844,193.94,193.9,2.66]
[1761378847461,2.67,193.97,193.9,2.66]
[1761378847662,4.0438833,193.96,193.9,2.66]
[1761378847856,4.0438833,193.95,193.9,2.66]
[1761378848056,4.0438833,193.94,193.9,2.66]
[1761378848359,2.67,193.97,193.9,2.66]
[1761378848556,4.04431261,193.96,193.9,2.66]
[1761378848751,4.04431261,193.95,193.9,2.66]
[1761378848956,4.04431261,193.94,193.9,2.66]
[1761378849263,2.67,193.97,193.9,2.66]
[1761378849461,4.04484411,193.96,193.9,2.66]
[1761378849758,4.04484411,193.95,193.9,2.66]
[1761378849964,4.04484411,193.94,193.9,2.66]
[1761378850162,2.67,193.97,193.9,7.3005]
[1761378850459,6.65458365,193.96,193.91,2.68]
[1761378850663,4.04458365,193.95,193.91,2.68]
[1761378850864,4.04458365,193.94,193.91,2.68]
[1761378851067,2.61,193.96,193.91,2.68]
[1761378851270,6.65507689,193.95,193.91,2.68]
[1761378851563,4.04507689,193.94,193.91,2.68]
[1761378851753,2.61,193.95,193.91,2.68]
[1761378851952,4.81073073,194.0,193.94,2.68]
[1761378852155,4.04645103,193.99,193.96,2.68]
[1761378852353,4.04694615,193.98,193.96,2.68]
[1761378852561,2.61,194.02,193.96,2.68]
[1761378852763,2.61,194.0,193.96,2.68]
[1761378852958,4.0469786,193.99,193.96,2.68]
[1761378853157,2.61,194.0,193.96,2.68]
[1761378853364,4.04664458,193.99,193.96,2.68]
[1761378853665,2.61,194.0,193.96,2.68]
[1761378853869,4.0468993,193.99,193.96,2.68]
[1761378854070,2.61,194.0,193.96,2.68]
[1761378854267,4.04657154,193.99,193.96,2.68]
[1761378854470,2.61,194.0,193.96,2.68]
[1761378854665,2.61,193.98,193.96,2.68]
[1761378854862,4.04682085,193.97,193.96,2.68]
[1761378855059,2.61,194.01,193.96,2.68]
[1761378855260,4.04606333,194.0,193.96,2.68]
[1761378855463,6.65606333,193.99,193.96,2.68]
[1761378855663,4.04606333,193.98,193.96,2.68]
[1761378855864,2.61,193.99,193.96,2.68]
[1761378856170,4.04626739,193.98,193.96,2.68]
[1761378856471,2.61,193.99,193.96,2.68]
[1761378856670,4.0463329,193.98,193.96,2.68]
[1761378856869,2.61,193.99,193.96,2.68]
[1761378857069,4.04631879,193.98,193.96,2.68]
[1761378857372,2.61,193.98,193.96,2.68]
[1761378857773,4.04633938,193.97,193.96,64.88]
[1761378859473,2.61,193.98,193.96,64.88]
[1761378859673,4.046476,193.97,193.96,64.88]
[1761378862774,2.61,193.98,193.96,64.88]
[1761378862975,4.04609828,193.97,193.96,64.88]
[1761378863177,2.61,193.98,193.96,64.88]
[1761378863377,4.04610016,193.97,193.96,64.88]
[1761378863571,2.61,193.98,193.96,64.88]
[1761378863769,4.04598912,193.97,193.96,64.88]
[1761378864478,6.65598912,193.97,193.96,62.2]
[1761378864673,4.04598912,193.97,193.93,2.68]
[1761378864875,2.61,193.96,193.94,62.18]
[1761378865074,4.81073073,194.01,193.95,2.68]
[1761378865378,2.61,193.99,193.95,2.68]
[1761378865580,6.65578883,193.98,193.95,2.68]
[1761378865768,6.65578883,193.98,193.94,62.18]
[1761378865769,2.61,193.96,193.94,64.86]
[1761378865973,6.65578883,193.95,193.94,62.18]
[1761378866375,4.04578883,193.95,193.94,64.86]
[1761378876077,2.61,193.98,193.94,64.86]
[1761378876282,6.35903491,194.02,193.94,64.86]
[1761378876283,6.63173442,193.97,193.94,64.86]
[1761378876483,4.02173442,193.96,193.94,64.86]
[1761378876683,4.02173442,193.95,193.94,64.86]
[1761378884103,4.01886678,193.95,193.94,62.18]